[Event "Late-Titled-Tuesday-Blitz-June-25-2024"]
[Site "Chess.com"]
[Date "2024.06.25"]
[Round "3"]
[White "chess_cryptoworld"]
[Black "varunkrishnanchess"]
[Result "1-0"]
[WhiteElo "2469"]
[BlackElo "2635"]
[TimeControl "180+1"]
[EndTime "14:28:32 PDT"]
[Termination "chess_cryptoworld won by resignation"]

1. Nf3 {[%clk 0:02:57.1]} 1... Na6 {[%clk 0:02:52.8]} 2. g3 {[%clk 0:02:51.5]}
2... c6 {[%clk 0:02:51.6]} 3. Bg2 {[%clk 0:02:47.8]} 3... Nh6 {[%clk 0:02:48.4]}
4. O-O {[%clk 0:02:48.2]} 4... f6 {[%clk 0:02:47.9]} 5. d4 {[%clk 0:02:48.4]}
5... Nf7 {[%clk 0:02:42.6]} 6. c4 {[%clk 0:02:40.7]} 6... Nc7 {[%clk 0:02:38.4]}
7. Nc3 {[%clk 0:02:37.3]} 7... d5 {[%clk 0:02:37.9]} 8. cxd5 {[%clk 0:02:36.1]}
8... cxd5 {[%clk 0:02:38.8]} 9. e4 {[%clk 0:02:33.7]} 9... Be6 {[%clk
0:02:30.1]} 10. Re1 {[%clk 0:02:32.7]} 10... dxe4 {[%clk 0:02:27.5]} 11. Nxe4
{[%clk 0:02:33.6]} 11... Bd5 {[%clk 0:02:23.9]} 12. Nc3 {[%clk 0:02:23.9]} 12...
Qd7 {[%clk 0:02:18]} 13. Bf4 {[%clk 0:02:22.6]} 13... Nd6 {[%clk 0:02:00.9]} 14.
Nxd5 {[%clk 0:02:03.4]} 14... Nxd5 {[%clk 0:02:00.2]} 15. Bxd6 {[%clk
0:02:03.9]} 15... Qxd6 {[%clk 0:01:59.7]} 16. Nh4 {[%clk 0:02:04]} 16... e6
{[%clk 0:01:41.3]} 17. Qh5+ {[%clk 0:01:59.4]} 17... Kd7 {[%clk 0:01:31]} 18.
Nf5 {[%clk 0:01:40.5]} 18... g6 {[%clk 0:01:14.1]} 19. Nxd6 {[%clk 0:01:36]}
19... gxh5 {[%clk 0:01:13.8]} 20. Bxd5 {[%clk 0:01:31.3]} 20... exd5 {[%clk
0:01:08.3]} 21. Nf5 {[%clk 0:01:19.2]} 21... Bb4 {[%clk 0:01:04.5]} 22. Re2
{[%clk 0:01:10.4]} 22... Rhe8 {[%clk 0:01:03.4]} 23. Kf1 {[%clk 0:01:07.2]}
23... Rxe2 {[%clk 0:01:01.8]} 24. Kxe2 {[%clk 0:01:08.1]} 24... Ke6 {[%clk
0:00:53.9]} 25. Ng7+ {[%clk 0:01:05.9]} 25... Kf7 {[%clk 0:00:53.1]} 26. Nxh5
{[%clk 0:01:06.8]} 26... Rc8 {[%clk 0:00:52.6]} 27. Kd3 {[%clk 0:01:06.2]} 27...
Bd6 {[%clk 0:00:51.7]} 28. Re1 {[%clk 0:00:56.1]} 28... Kg6 {[%clk 0:00:47.3]}
29. g4 {[%clk 0:00:56.2]} 29... Kg5 {[%clk 0:00:39.4]} 30. h3 {[%clk 0:00:46.2]}
30... f5 {[%clk 0:00:34.4]} 31. Re6 {[%clk 0:00:41.4]} 31... Rd8 {[%clk
0:00:33.9]} 32. Nf6 {[%clk 0:00:38.7]} 32... fxg4 {[%clk 0:00:29.8]} 33. Nxh7+
{[%clk 0:00:38.4]} 33... Kh5 {[%clk 0:00:23.4]} 34. Nf6+ {[%clk 0:00:37.9]}
34... Kg5 {[%clk 0:00:23.7]} 35. Nxg4 {[%clk 0:00:37.6]} 35... Bf4 {[%clk
0:00:21.1]} 36. Ne3 {[%clk 0:00:33.4]} 36... Rh8 {[%clk 0:00:20.4]} 37. Nxd5
{[%clk 0:00:29.6]} 37... Rxh3+ {[%clk 0:00:20.3]} 38. Ne3 {[%clk 0:00:30]} 38...
Rh1 {[%clk 0:00:19.7]} 39. d5 {[%clk 0:00:28]} 39... Rb1 {[%clk 0:00:19.1]} 40.
d6 {[%clk 0:00:23.8]} 40... Bxe3 {[%clk 0:00:05.5]} 41. fxe3 {[%clk 0:00:18.2]}
41... Kf5 {[%clk 0:00:05.4]} 42. Rh6 {[%clk 0:00:16.7]} 42... Kg5 {[%clk
0:00:03.6]} 43. Rh7 {[%clk 0:00:17]} 43... Rd1+ {[%clk 0:00:02.7]} 44. Kc2
{[%clk 0:00:17.1]} 44... Rxd6 {[%clk 0:00:03.3]} 45. Rxb7 {[%clk 0:00:17.3]}
45... a6 {[%clk 0:00:03.8]} 46. Ra7 {[%clk 0:00:17.1]} 46... Kg4 {[%clk
0:00:04]} 47. Rf7 {[%clk 0:00:16.7]} 47... Re6 {[%clk 0:00:03.2]} 48. Rf4+
{[%clk 0:00:17.1]} 48... Kg3 {[%clk 0:00:03.1]} 49. Ra4 {[%clk 0:00:17.1]} 49...
Kf3 {[%clk 0:00:02.5]} 50. e4 {[%clk 0:00:17.7]} 50... Ke3 {[%clk 0:00:02.4]}
51. Kb3 {[%clk 0:00:17.5]} 51... Rb6+ {[%clk 0:00:02.4]} 52. Rb4 {[%clk
0:00:17.7]} 52... Rc6 {[%clk 0:00:02.7]} 53. Ka4 {[%clk 0:00:17.9]} 53... Kd3
{[%clk 0:00:02.8]} 54. a3 {[%clk 0:00:16.9]} 54... Re6 {[%clk 0:00:03.1]} 55.
Ka5 {[%clk 0:00:17.1]} 55... Ke3 {[%clk 0:00:02.6]} 56. b3 {[%clk 0:00:16.8]}
56... Kd3 {[%clk 0:00:02.8]} 57. a4 {[%clk 0:00:16.9]} 57... Kc3 {[%clk
0:00:03.2]} 58. Rb6 {[%clk 0:00:16.3]} 58... Re5+ {[%clk 0:00:02.8]} 59. Kxa6
{[%clk 0:00:16.2]} 59... Rxe4 {[%clk 0:00:03.7]} 60. b4 {[%clk 0:00:16.1]} 60...
Kb3 {[%clk 0:00:03.5]} 61. a5 {[%clk 0:00:16.5]} 61... Ka4 {[%clk 0:00:04.4]}
62. b5 {[%clk 0:00:15.7]} 62... Re8 {[%clk 0:00:03.7]} 63. Rb7 {[%clk
0:00:12.2]} 63... Ra8+ {[%clk 0:00:03.8]} 64. Ra7 {[%clk 0:00:12.5]} 64... Rb8
{[%clk 0:00:03.1]} 65. b6 {[%clk 0:00:12.6]} 65... Kb4 {[%clk 0:00:03.6]} 66. b7
{[%clk 0:00:10.4]} 66... Kc5 {[%clk 0:00:03.6]} 67. Ra8 {[%clk 0:00:10.9]} 1-0

[Event "Late-Titled-Tuesday-Blitz-June-25-2024"]
[Site "Chess.com"]
[Date "2024.06.25"]
[Round "3"]
[White "AlexOstrovskiy"]
[Black "Rakitic2010"]
[Result "1-0"]
[WhiteElo "2708"]
[BlackElo "2474"]
[TimeControl "180+1"]
[EndTime "14:28:34 PDT"]
[Termination "AlexOstrovskiy won by checkmate"]

1. e4 {[%clk 0:02:46.2]} 1... Nf6 {[%clk 0:02:59.8]} 2. Nc3 {[%clk 0:02:44.8]}
2... d5 {[%clk 0:02:59.5]} 3. exd5 {[%clk 0:02:42.1]} 3... Nxd5 {[%clk
0:02:59.6]} 4. Bc4 {[%clk 0:02:41.3]} 4... Be6 {[%clk 0:02:59.5]} 5. Qf3 {[%clk
0:02:37.7]} 5... c6 {[%clk 0:02:57.7]} 6. Nge2 {[%clk 0:02:37.7]} 6... Nd7
{[%clk 0:02:57.5]} 7. d4 {[%clk 0:02:23.8]} 7... g6 {[%clk 0:02:48.5]} 8. Nxd5
{[%clk 0:02:02.5]} 8... cxd5 {[%clk 0:02:32.9]} 9. Bxd5 {[%clk 0:01:58.1]} 9...
Ne5 {[%clk 0:02:29.7]} 10. dxe5 {[%clk 0:01:59]} 10... Bxd5 {[%clk 0:02:25]} 11.
Qg3 {[%clk 0:01:58.8]} 11... Bg7 {[%clk 0:02:23.2]} 12. O-O {[%clk 0:01:56.8]}
12... O-O {[%clk 0:02:16.1]} 13. Rd1 {[%clk 0:01:54.8]} 13... Qa5 {[%clk
0:02:15.7]} 14. Bd2 {[%clk 0:01:44.1]} 14... Qa6 {[%clk 0:02:04.9]} 15. Nc3
{[%clk 0:01:40.8]} 15... Be6 {[%clk 0:02:00.7]} 16. Bg5 {[%clk 0:01:32.2]} 16...
Rfe8 {[%clk 0:01:50.7]} 17. Qe3 {[%clk 0:01:29.3]} 17... Qa5 {[%clk 0:01:48.8]}
18. Bf4 {[%clk 0:01:29.2]} 18... Rac8 {[%clk 0:01:40.9]} 19. h3 {[%clk
0:01:28.2]} 19... a6 {[%clk 0:01:34]} 20. a3 {[%clk 0:01:25.7]} 20... b5 {[%clk
0:01:21.9]} 21. Rd4 {[%clk 0:01:22.7]} 21... Bf5 {[%clk 0:01:15.2]} 22. Qe2
{[%clk 0:01:01.5]} 22... f6 {[%clk 0:01:03]} 23. Re1 {[%clk 0:00:41.7]} 23...
Qb6 {[%clk 0:00:56.8]} 24. Rd2 {[%clk 0:00:30.2]} 24... b4 {[%clk 0:00:53.1]}
25. Nd5 {[%clk 0:00:26.4]} 25... Qb7 {[%clk 0:00:41.5]} 26. exf6 {[%clk
0:00:20.7]} 26... Bxf6 {[%clk 0:00:41.3]} 27. axb4 {[%clk 0:00:15.8]} 27... Kf7
{[%clk 0:00:34.1]} 28. c3 {[%clk 0:00:13.7]} 28... Rcd8 {[%clk 0:00:32.4]} 29.
Red1 {[%clk 0:00:10.7]} 29... Bc2 {[%clk 0:00:27.7]} 30. Rxc2 {[%clk 0:00:07.4]}
30... Rxd5 {[%clk 0:00:27.9]} 31. Rxd5 {[%clk 0:00:07.3]} 31... Qxd5 {[%clk
0:00:27.9]} 32. Rd2 {[%clk 0:00:07.9]} 32... Qf5 {[%clk 0:00:27.3]} 33. Qf3
{[%clk 0:00:06.3]} 33... Kg7 {[%clk 0:00:24.6]} 34. Be3 {[%clk 0:00:04.3]} 34...
Qb1+ {[%clk 0:00:23.6]} 35. Qd1 {[%clk 0:00:04.6]} 35... Qa2 {[%clk 0:00:23.1]}
36. g3 {[%clk 0:00:03.3]} 36... h5 {[%clk 0:00:21]} 37. h4 {[%clk 0:00:03.8]}
37... Qe6 {[%clk 0:00:19.9]} 38. Bd4 {[%clk 0:00:03.9]} 38... Rf8 {[%clk
0:00:18.6]} 39. Re2 {[%clk 0:00:04.1]} 39... Qf5 {[%clk 0:00:18.4]} 40. Bxf6+
{[%clk 0:00:04.2]} 40... Rxf6 {[%clk 0:00:19.3]} 41. Qd4 {[%clk 0:00:04.5]}
41... Kf7 {[%clk 0:00:17.9]} 42. Qe5 {[%clk 0:00:04.1]} 42... Qd7 {[%clk
0:00:14.2]} 43. Kg2 {[%clk 0:00:03.2]} 43... Qc6+ {[%clk 0:00:13.4]} 44. Qe4
{[%clk 0:00:03.5]} 44... Qd7 {[%clk 0:00:14]} 45. Re3 {[%clk 0:00:02.7]} 45...
Kf8 {[%clk 0:00:14.2]} 46. Rf3 {[%clk 0:00:02.8]} 46... Kf7 {[%clk 0:00:13.9]}
47. Rxf6+ {[%clk 0:00:03]} 47... exf6 {[%clk 0:00:14.8]} 48. Qf3 {[%clk
0:00:02.5]} 48... Qd6 {[%clk 0:00:14]} 49. Qb7+ {[%clk 0:00:02.6]} 49... Ke6
{[%clk 0:00:14.3]} 50. Qe4+ {[%clk 0:00:03.1]} 50... Kf7 {[%clk 0:00:14.6]} 51.
Qe3 {[%clk 0:00:03.5]} 51... Qd5+ {[%clk 0:00:13.9]} 52. Qf3 {[%clk 0:00:03.8]}
52... Qd6 {[%clk 0:00:14.8]} 53. b3 {[%clk 0:00:03.2]} 53... Qe6 {[%clk
0:00:14]} 54. Qb7+ {[%clk 0:00:02.9]} 54... Kf8 {[%clk 0:00:14.2]} 55. Qa8+
{[%clk 0:00:03]} 55... Kf7 {[%clk 0:00:14.3]} 56. c4 {[%clk 0:00:03.6]} 56...
Qd6 {[%clk 0:00:13.6]} 57. Qb7+ {[%clk 0:00:03.7]} 57... Kf8 {[%clk 0:00:13.7]}
58. c5 {[%clk 0:00:04.2]} 58... Qe6 {[%clk 0:00:11.7]} 59. Qf3 {[%clk
0:00:04.2]} 59... Qxb3 {[%clk 0:00:11.3]} 60. Qxb3 {[%clk 0:00:04.2]} 60... Ke7
{[%clk 0:00:11.7]} 61. Qd5 {[%clk 0:00:04.3]} 61... f5 {[%clk 0:00:11.7]} 62.
Qd6+ {[%clk 0:00:05.2]} 62... Kf7 {[%clk 0:00:11.8]} 63. c6 {[%clk 0:00:06.1]}
63... f4 {[%clk 0:00:12.1]} 64. c7 {[%clk 0:00:07]} 64... f3+ {[%clk 0:00:12.3]}
65. Kxf3 {[%clk 0:00:07.5]} 65... g5 {[%clk 0:00:13.1]} 66. c8=Q {[%clk
0:00:08.4]} 66... g4+ {[%clk 0:00:14]} 67. Kf4 {[%clk 0:00:08.9]} 67... Kg7
{[%clk 0:00:14.9]} 68. Qce6 {[%clk 0:00:09.4]} 68... Kh7 {[%clk 0:00:15.8]} 69.
Qde7+ {[%clk 0:00:10.3]} 69... Kh8 {[%clk 0:00:15.6]} 70. Qc8# {[%clk
0:00:11.2]} 1-0

[Event "Late-Titled-Tuesday-Blitz-June-25-2024"]
[Site "Chess.com"]
[Date "2024.06.25"]
[Round "3"]
[White "jk13"]
[Black "LastGladiator1"]
[Result "0-1"]
[WhiteElo "2694"]
[BlackElo "2986"]
[TimeControl "180+1"]
[EndTime "14:28:37 PDT"]
[Termination "LastGladiator1 won by resignation"]

1. e4 {[%clk 0:03:00.9]} 1... e5 {[%clk 0:02:56.4]} 2. Nf3 {[%clk 0:02:59.8]}
2... Nc6 {[%clk 0:02:56.4]} 3. Bc4 {[%clk 0:03:00.4]} 3... Nf6 {[%clk
0:02:53.3]} 4. d3 {[%clk 0:03:01]} 4... h6 {[%clk 0:02:51.2]} 5. O-O {[%clk
0:03:00.4]} 5... d6 {[%clk 0:02:51.8]} 6. a4 {[%clk 0:02:59.6]} 6... g6 {[%clk
0:02:51.2]} 7. Nc3 {[%clk 0:02:58.8]} 7... Bg7 {[%clk 0:02:50.1]} 8. a5 {[%clk
0:02:59.5]} 8... a6 {[%clk 0:02:49.6]} 9. Nd5 {[%clk 0:02:53.5]} 9... O-O {[%clk
0:02:47.3]} 10. c3 {[%clk 0:02:50.4]} 10... Kh7 {[%clk 0:02:35.6]} 11. Re1
{[%clk 0:02:27.1]} 11... Nxd5 {[%clk 0:02:28.3]} 12. exd5 {[%clk 0:02:27.2]}
12... Ne7 {[%clk 0:02:21.1]} 13. d4 {[%clk 0:02:27.3]} 13... exd4 {[%clk
0:02:10.8]} 14. Nxd4 {[%clk 0:02:27.2]} 14... Nf5 {[%clk 0:02:11.1]} 15. Nf3
{[%clk 0:02:05.8]} 15... Nh4 {[%clk 0:01:40.3]} 16. Bd3 {[%clk 0:01:53.1]} 16...
Bd7 {[%clk 0:01:03.9]} 17. h3 {[%clk 0:01:18.6]} 17... Qf6 {[%clk 0:00:57.5]}
18. Nxh4 {[%clk 0:01:16.3]} 18... Qxh4 {[%clk 0:00:54]} 19. Qf3 {[%clk
0:01:16.9]} 19... Rae8 {[%clk 0:00:51]} 20. Bf4 {[%clk 0:01:16.2]} 20... f5
{[%clk 0:00:46.4]} 21. Bd2 {[%clk 0:00:40.2]} 21... Be5 {[%clk 0:00:41.6]} 22.
Re2 {[%clk 0:00:30.9]} 22... Kg7 {[%clk 0:00:37.9]} 23. Rae1 {[%clk 0:00:24.5]}
23... g5 {[%clk 0:00:38]} 24. Bc2 {[%clk 0:00:14.4]} 24... g4 {[%clk 0:00:32.9]}
25. Qd3 {[%clk 0:00:12.9]} 25... gxh3 {[%clk 0:00:17.6]} 26. Qxh3 {[%clk
0:00:11.3]} 26... Qxh3 {[%clk 0:00:16.9]} 27. gxh3 {[%clk 0:00:12.2]} 27... f4
{[%clk 0:00:16.8]} 28. Kh1 {[%clk 0:00:07.1]} 28... Rg8 {[%clk 0:00:06.8]} 29.
f3 {[%clk 0:00:06.4]} 29... Kf6 {[%clk 0:00:05.9]} 30. Rg2 {[%clk 0:00:03.4]}
30... Rxg2 {[%clk 0:00:05.4]} 31. Kxg2 {[%clk 0:00:03.9]} 31... Rg8+ {[%clk
0:00:06.1]} 32. Kf2 {[%clk 0:00:04.5]} 32... Bxh3 {[%clk 0:00:04.6]} 33. Rg1
{[%clk 0:00:04.1]} 33... Rxg1 {[%clk 0:00:04.8]} 34. Kxg1 {[%clk 0:00:05]} 34...
Bf5 {[%clk 0:00:05.3]} 35. Bxf5 {[%clk 0:00:03.3]} 35... Kxf5 {[%clk 0:00:06.2]}
36. Kg2 {[%clk 0:00:03.4]} 36... Bf6 {[%clk 0:00:06.5]} 37. b3 {[%clk
0:00:03.3]} 37... h5 {[%clk 0:00:04.1]} 38. c4 {[%clk 0:00:03.7]} 38... Bg5
{[%clk 0:00:03.3]} 39. Kf2 {[%clk 0:00:03.3]} 39... Bf6 {[%clk 0:00:03.9]} 40.
Ke2 {[%clk 0:00:03.3]} 40... Bd4 {[%clk 0:00:04.4]} 41. Be1 {[%clk 0:00:02.9]}
41... Ke5 {[%clk 0:00:03.9]} 42. Bh4 {[%clk 0:00:02.7]} 42... c6 {[%clk
0:00:03.8]} 43. dxc6 {[%clk 0:00:02.2]} 43... bxc6 {[%clk 0:00:04.7]} 44. Kd3
{[%clk 0:00:02.8]} 44... Bc5 {[%clk 0:00:05.2]} 45. Bg5 {[%clk 0:00:03.3]} 45...
Bb4 {[%clk 0:00:05.2]} 46. Bh4 {[%clk 0:00:03.9]} 46... Bxa5 {[%clk 0:00:05.4]}
47. Bg5 {[%clk 0:00:04.2]} 47... Bb4 {[%clk 0:00:05.9]} 48. Bh4 {[%clk
0:00:04.8]} 48... d5 {[%clk 0:00:06.4]} 49. cxd5 {[%clk 0:00:04.6]} 49... Kxd5
{[%clk 0:00:06.5]} 50. Bg5 {[%clk 0:00:05.5]} 50... Bd6 {[%clk 0:00:06.5]} 51.
Bh4 {[%clk 0:00:05.5]} 51... Be5 {[%clk 0:00:07]} 52. Bg5 {[%clk 0:00:06]} 52...
c5 {[%clk 0:00:07.5]} 53. Bh4 {[%clk 0:00:06.3]} 53... Bd4 {[%clk 0:00:05.6]}
54. Bg5 {[%clk 0:00:06.6]} 54... Ke5 {[%clk 0:00:05.3]} 55. Bh4 {[%clk
0:00:06.8]} 55... Kf5 {[%clk 0:00:05.7]} 56. Be1 {[%clk 0:00:06.6]} 56... Bf6
{[%clk 0:00:05.9]} 57. Bf2 {[%clk 0:00:06.6]} 57... h4 {[%clk 0:00:05.8]} 58.
Bxc5 {[%clk 0:00:06.8]} 58... h3 {[%clk 0:00:06.5]} 59. Bg1 {[%clk 0:00:07.6]}
59... Bh4 {[%clk 0:00:06.8]} 60. Ke2 {[%clk 0:00:07.3]} 60... Bg3 {[%clk
0:00:07]} 61. Kd3 {[%clk 0:00:07.6]} 61... h2 {[%clk 0:00:07.4]} 62. Bxh2 {[%clk
0:00:08.3]} 62... Bxh2 {[%clk 0:00:08.3]} 63. Kc4 {[%clk 0:00:08.6]} 63... Bg1
{[%clk 0:00:07.7]} 64. Kd5 {[%clk 0:00:09.5]} 64... Be3 {[%clk 0:00:07.3]} 65.
Kc6 {[%clk 0:00:10.1]} 65... a5 {[%clk 0:00:07.9]} 66. Kb5 {[%clk 0:00:10.5]}
66... Bd2 {[%clk 0:00:08.5]} 67. Ka4 {[%clk 0:00:10.6]} 67... Kg5 {[%clk
0:00:09]} 68. Kb5 {[%clk 0:00:10.8]} 68... Bb4 {[%clk 0:00:09.9]} 69. Kc4 {[%clk
0:00:11.3]} 69... Kh4 {[%clk 0:00:10.6]} 70. Kd3 {[%clk 0:00:12.2]} 70... Kg3
{[%clk 0:00:11.2]} 71. Ke4 {[%clk 0:00:13.1]} 71... Be1 {[%clk 0:00:11.6]} 0-1

[Event "Late-Titled-Tuesday-Blitz-June-25-2024"]
[Site "Chess.com"]
[Date "2024.06.25"]
[Round "3"]
[White "zverr1"]
[Black "SimplyDevina"]
[Result "1-0"]
[WhiteElo "2563"]
[BlackElo "2320"]
[TimeControl "180+1"]
[EndTime "14:28:41 PDT"]
[Termination "zverr1 won by resignation"]

1. e4 {[%clk 0:03:00.9]} 1... c6 {[%clk 0:02:59.5]} 2. d4 {[%clk 0:03:00.9]}
2... d5 {[%clk 0:02:59.7]} 3. Nc3 {[%clk 0:03:01.8]} 3... dxe4 {[%clk
0:02:59.9]} 4. Nxe4 {[%clk 0:03:02.7]} 4... Nf6 {[%clk 0:03:00.6]} 5. Nxf6+
{[%clk 0:03:03]} 5... exf6 {[%clk 0:03:01.5]} 6. Bc4 {[%clk 0:03:03.4]} 6... Bd6
{[%clk 0:03:02]} 7. Qe2+ {[%clk 0:03:03.9]} 7... Qe7 {[%clk 0:02:58.9]} 8. Qxe7+
{[%clk 0:03:03.4]} 8... Bxe7 {[%clk 0:02:57.6]} 9. Ne2 {[%clk 0:03:04.3]} 9...
O-O {[%clk 0:02:57.7]} 10. Bd3 {[%clk 0:03:01.2]} 10... f5 {[%clk 0:02:20.9]}
11. Bf4 {[%clk 0:02:43.4]} 11... Bf6 {[%clk 0:02:15.8]} 12. O-O-O {[%clk
0:02:42.6]} 12... a5 {[%clk 0:02:09.6]} 13. c3 {[%clk 0:02:40.1]} 13... b6
{[%clk 0:01:51.2]} 14. h4 {[%clk 0:02:37.3]} 14... Ba6 {[%clk 0:01:45.5]} 15.
Ng3 {[%clk 0:02:19.8]} 15... Bxd3 {[%clk 0:01:41.8]} 16. Rxd3 {[%clk 0:02:20.7]}
16... g6 {[%clk 0:01:41.5]} 17. h5 {[%clk 0:02:04.4]} 17... Nd7 {[%clk
0:01:11.1]} 18. d5 {[%clk 0:01:25.8]} 18... Nc5 {[%clk 0:01:09.4]} 19. Rd2
{[%clk 0:01:14.7]} 19... cxd5 {[%clk 0:01:04.1]} 20. Rxd5 {[%clk 0:01:12.8]}
20... Rfd8 {[%clk 0:01:00.9]} 21. Rxd8+ {[%clk 0:01:00.8]} 21... Rxd8 {[%clk
0:00:59]} 22. Bc7 {[%clk 0:01:00.1]} 22... Rd5 {[%clk 0:00:44.9]} 23. Bxb6
{[%clk 0:00:58.3]} 23... Nd3+ {[%clk 0:00:45.4]} 24. Kc2 {[%clk 0:00:54.1]}
24... Be5 {[%clk 0:00:29.7]} 25. Rd1 {[%clk 0:00:42.1]} 25... Rb5 {[%clk
0:00:12.8]} 26. Rxd3 {[%clk 0:00:26.4]} 26... Rxb6 {[%clk 0:00:12.8]} 27. h6
{[%clk 0:00:27.2]} 27... Kf8 {[%clk 0:00:10.9]} 28. Ne2 {[%clk 0:00:22.5]} 28...
Rb5 {[%clk 0:00:08.5]} 29. a4 {[%clk 0:00:19.8]} 29... Rc5 {[%clk 0:00:06.8]}
30. Rd7 {[%clk 0:00:18.3]} 30... Ke8 {[%clk 0:00:06.5]} 31. Ra7 {[%clk
0:00:18.1]} 31... Bf6 {[%clk 0:00:03.5]} 32. Nf4 {[%clk 0:00:14.6]} 32... Bg5
{[%clk 0:00:03.3]} 33. Nd3 {[%clk 0:00:15.2]} 33... Rd5 {[%clk 0:00:02.8]} 34.
c4 {[%clk 0:00:11.2]} 34... Rd4 {[%clk 0:00:01.5]} 35. Kc3 {[%clk 0:00:11.4]}
35... Bf6 {[%clk 0:00:02.2]} 36. Kd2 {[%clk 0:00:04.6]} 36... Rxc4 {[%clk
0:00:02]} 37. b3 {[%clk 0:00:04.8]} 37... Rd4 {[%clk 0:00:02.2]} 38. Rxa5 {[%clk
0:00:04.2]} 38... Rd6 {[%clk 0:00:01.7]} 39. Ra7 {[%clk 0:00:03.3]} 39... Rd8
{[%clk 0:00:01.5]} 40. Kc2 {[%clk 0:00:03.7]} 40... Rd6 {[%clk 0:00:01.6]} 41.
Nc5 {[%clk 0:00:03.7]} 41... Kd8 {[%clk 0:00:02.3]} 42. b4 {[%clk 0:00:04.1]}
42... Ke8 {[%clk 0:00:02.3]} 43. Kb3 {[%clk 0:00:04.6]} 43... Rd8 {[%clk
0:00:02.8]} 44. Kc4 {[%clk 0:00:04.6]} 44... Rd6 {[%clk 0:00:03.2]} 45. Ra8+
{[%clk 0:00:03.9]} 45... Ke7 {[%clk 0:00:03.1]} 46. Ra7+ {[%clk 0:00:04.3]}
46... Ke8 {[%clk 0:00:03.5]} 47. a5 {[%clk 0:00:04.8]} 47... Bg5 {[%clk
0:00:03.7]} 48. b5 {[%clk 0:00:04.4]} 48... Bxh6 {[%clk 0:00:04.1]} 49. Nb7
{[%clk 0:00:04.3]} 49... Rd7 {[%clk 0:00:03.5]} 50. Ra8+ {[%clk 0:00:04.8]}
50... Ke7 {[%clk 0:00:04.1]} 51. Nc5 {[%clk 0:00:05.6]} 51... Rd1 {[%clk
0:00:03.4]} 52. b6 {[%clk 0:00:04.9]} 52... Rc1+ {[%clk 0:00:03.4]} 53. Kb5
{[%clk 0:00:05.5]} 53... Bd2 {[%clk 0:00:03.6]} 54. b7 {[%clk 0:00:04.3]} 54...
Rb1+ {[%clk 0:00:04.3]} 55. Kc6 {[%clk 0:00:04.4]} 55... Bf4 {[%clk 0:00:02.8]}
56. a6 {[%clk 0:00:02.3]} 56... Rc1 {[%clk 0:00:01.2]} 57. a7 {[%clk 0:00:02.6]}
57... Rb1 {[%clk 0:00:01.4]} 58. b8=Q {[%clk 0:00:02.9]} 58... Bxb8 {[%clk
0:00:02.1]} 59. axb8=Q {[%clk 0:00:03.6]} 59... Rxb8 {[%clk 0:00:01.8]} 60. Rxb8
{[%clk 0:00:04.5]} 60... Kf6 {[%clk 0:00:02.6]} 61. Nd7+ {[%clk 0:00:03.5]}
61... Kg7 {[%clk 0:00:02.8]} 62. Rb6 {[%clk 0:00:04.4]} 62... g5 {[%clk
0:00:03.7]} 63. Kd6 {[%clk 0:00:05.1]} 63... Kg6 {[%clk 0:00:04.6]} 64. Ke7+
{[%clk 0:00:06]} 64... f6 {[%clk 0:00:05.5]} 65. Rxf6+ {[%clk 0:00:05.8]} 65...
Kh5 {[%clk 0:00:06.4]} 66. Nf8 {[%clk 0:00:05.8]} 66... Kg4 {[%clk 0:00:07.3]}
67. Nxh7 {[%clk 0:00:06.2]} 67... f4 {[%clk 0:00:07.5]} 68. Rg6 {[%clk
0:00:06.1]} 68... Kf5 {[%clk 0:00:08.4]} 69. Rxg5+ {[%clk 0:00:06.5]} 69... Ke4
{[%clk 0:00:08.8]} 70. f3+ {[%clk 0:00:06.9]} 70... Ke3 {[%clk 0:00:09.2]} 71.
Rf5 {[%clk 0:00:07.6]} 71... Kf2 {[%clk 0:00:10.1]} 72. Rxf4 {[%clk 0:00:08.3]}
72... Kxg2 {[%clk 0:00:11]} 73. Rg4+ {[%clk 0:00:08.9]} 73... Kh3 {[%clk
0:00:11.7]} 74. Rg5 {[%clk 0:00:08.5]} 74... Kh4 {[%clk 0:00:12.6]} 75. f4
{[%clk 0:00:09.4]} 1-0